[Event "Early-Titled-Tuesday-Blitz-October-17-2023"]
[Site "Chess.com"]
[Date "2023.10.17"]
[Round "6"]
[White "esrosenberg"]
[Black "Alphafischer2019"]
[Result "1-0"]
[WhiteElo "2417"]
[BlackElo "2587"]
[TimeControl "180+1"]
[EndTime "9:11:53 PDT"]
[Termination "esrosenberg won by resignation"]

1. d4 {[%clk 0:03:00.9]} 1... Nf6 {[%clk 0:02:59.9]} 2. Nf3 {[%clk 0:03:01.6]}
2... g6 {[%clk 0:02:57.5]} 3. Nc3 {[%clk 0:03:01.6]} 3... Bg7 {[%clk 0:02:51.4]}
4. e4 {[%clk 0:03:01.3]} 4... d6 {[%clk 0:02:52]} 5. Be2 {[%clk 0:03:01.6]} 5...
c6 {[%clk 0:02:52.2]} 6. O-O {[%clk 0:03:01.3]} 6... O-O {[%clk 0:02:52.5]} 7.
Re1 {[%clk 0:02:58.5]} 7... Qc7 {[%clk 0:02:49.9]} 8. a4 {[%clk 0:02:56.8]} 8...
e5 {[%clk 0:02:48]} 9. a5 {[%clk 0:02:53.2]} 9... h6 {[%clk 0:02:37.7]} 10. h3
{[%clk 0:02:52.6]} 10... Nh5 {[%clk 0:02:37.1]} 11. Be3 {[%clk 0:02:27.5]} 11...
Nf4 {[%clk 0:02:33.7]} 12. Bc4 {[%clk 0:02:27.5]} 12... g5 {[%clk 0:02:27.2]}
13. Ne2 {[%clk 0:02:13.5]} 13... Nd7 {[%clk 0:02:19.8]} 14. Ng3 {[%clk
0:02:09.9]} 14... Nf6 {[%clk 0:02:18.9]} 15. c3 {[%clk 0:01:52]} 15... g4 {[%clk
0:02:03.8]} 16. hxg4 {[%clk 0:01:43.4]} 16... Bxg4 {[%clk 0:02:04.7]} 17. Bxf4
{[%clk 0:01:37]} 17... exf4 {[%clk 0:02:04.3]} 18. Nf5 {[%clk 0:01:37.7]} 18...
d5 {[%clk 0:01:38.8]} 19. Nxg7 {[%clk 0:01:21.6]} 19... dxe4 {[%clk 0:01:32]}
20. Nf5 {[%clk 0:01:11.9]} 20... Bxf5 {[%clk 0:01:31]} 21. Ne5 {[%clk
0:01:11.8]} 21... Nd7 {[%clk 0:01:12.2]} 22. Qh5 {[%clk 0:01:00.4]} 22... Nxe5
{[%clk 0:01:10.6]} 23. dxe5 {[%clk 0:00:59.2]} 23... Qxe5 {[%clk 0:01:06.4]} 24.
Qxh6 {[%clk 0:00:59.7]} 24... Bh7 {[%clk 0:00:51.7]} 25. Rad1 {[%clk 0:00:50.3]}
25... Rad8 {[%clk 0:00:51.9]} 26. Bxf7+ {[%clk 0:00:38.4]} 26... Kh8 {[%clk
0:00:46.3]} 27. Bg6 {[%clk 0:00:35.8]} 27... Qg7 {[%clk 0:00:37.9]} 28. Qxg7+
{[%clk 0:00:30.8]} 28... Kxg7 {[%clk 0:00:38.8]} 29. Bxh7 {[%clk 0:00:30.2]}
29... Rxd1 {[%clk 0:00:30.4]} 30. Rxd1 {[%clk 0:00:29.7]} 30... Kxh7 {[%clk
0:00:30.2]} 31. Rd7+ {[%clk 0:00:30.5]} 31... Kg6 {[%clk 0:00:30.7]} 32. Rxb7
{[%clk 0:00:31.2]} 32... Rd8 {[%clk 0:00:29.2]} 33. Rxa7 {[%clk 0:00:28.4]}
33... Rd1+ {[%clk 0:00:27.5]} 34. Kh2 {[%clk 0:00:28.4]} 34... Kf6 {[%clk
0:00:28.2]} 35. Ra8 {[%clk 0:00:23.2]} 35... e3 {[%clk 0:00:27.6]} 36. fxe3
{[%clk 0:00:22.3]} 36... fxe3 {[%clk 0:00:28.5]} 37. Re8 {[%clk 0:00:22.5]}
37... Re1 {[%clk 0:00:20.1]} 38. a6 {[%clk 0:00:22.3]} 38... Kf7 {[%clk
0:00:20.8]} 39. Re4 {[%clk 0:00:21.8]} 39... Ra1 {[%clk 0:00:15.9]} 40. Rxe3
{[%clk 0:00:21.6]} 40... Rxa6 {[%clk 0:00:16.8]} 41. b4 {[%clk 0:00:21.1]} 41...
Kf6 {[%clk 0:00:16.2]} 42. Kg3 {[%clk 0:00:21.4]} 42... Kf5 {[%clk 0:00:16.7]}
43. Kf3 {[%clk 0:00:21.7]} 43... Rb6 {[%clk 0:00:12]} 44. g4+ {[%clk 0:00:21.3]}
44... Kf6 {[%clk 0:00:12.4]} 45. Kf4 {[%clk 0:00:21.5]} 45... Rb5 {[%clk
0:00:12.1]} 46. Re8 {[%clk 0:00:17.7]} 46... Rd5 {[%clk 0:00:11.5]} 47. Rf8+
{[%clk 0:00:17.2]} 47... Ke7 {[%clk 0:00:11.3]} 48. Rf5 {[%clk 0:00:16.5]} 48...
Rd1 {[%clk 0:00:11.6]} 49. Rc5 {[%clk 0:00:15.8]} 49... Kd6 {[%clk 0:00:12.2]}
50. g5 {[%clk 0:00:15.2]} 50... Rf1+ {[%clk 0:00:12.8]} 51. Kg4 {[%clk
0:00:15.7]} 51... Rg1+ {[%clk 0:00:09.9]} 52. Kh5 {[%clk 0:00:16.1]} 52... Kd7
{[%clk 0:00:10.6]} 53. g6 {[%clk 0:00:15.3]} 53... Rh1+ {[%clk 0:00:08.7]} 54.
Kg5 {[%clk 0:00:15.7]} 54... Rg1+ {[%clk 0:00:09.4]} 55. Kf6 {[%clk 0:00:16]}
55... Rf1+ {[%clk 0:00:09.8]} 56. Rf5 {[%clk 0:00:14.5]} 56... Rg1 {[%clk
0:00:10.5]} 57. Kf7 {[%clk 0:00:13.9]} 57... Rf1 {[%clk 0:00:07.4]} 58. Rxf1
{[%clk 0:00:13.6]} 1-0

[Event "Early-Titled-Tuesday-Blitz-October-17-2023"]
[Site "Chess.com"]
[Date "2023.10.17"]
[Round "6"]
[White "vishwa_vijeta"]
[Black "ukchessbomber"]
[Result "0-1"]
[WhiteElo "2524"]
[BlackElo "2647"]
[TimeControl "180+1"]
[EndTime "9:11:55 PDT"]
[Termination "ukchessbomber won on time"]

1. e4 {[%clk 0:03:00.9]} 1... a6 {[%clk 0:02:59.8]} 2. d4 {[%clk 0:02:56.6]}
2... b5 {[%clk 0:02:59.6]} 3. c4 {[%clk 0:02:56.6]} 3... Bb7 {[%clk 0:03:00.5]}
4. f3 {[%clk 0:02:48.5]} 4... e6 {[%clk 0:02:58]} 5. cxb5 {[%clk 0:02:46.8]}
5... axb5 {[%clk 0:02:58.9]} 6. Bxb5 {[%clk 0:02:47.2]} 6... c5 {[%clk
0:02:59.8]} 7. Nc3 {[%clk 0:02:44.8]} 7... cxd4 {[%clk 0:02:58.5]} 8. Qxd4
{[%clk 0:02:45.7]} 8... Nc6 {[%clk 0:02:59.4]} 9. Bxc6 {[%clk 0:02:43.9]} 9...
Bxc6 {[%clk 0:03:00.3]} 10. Nge2 {[%clk 0:02:43]} 10... Qa5 {[%clk 0:03:00.8]}
11. Be3 {[%clk 0:02:42.6]} 11... Rb8 {[%clk 0:03:00.4]} 12. Rb1 {[%clk
0:02:38.2]} 12... Nf6 {[%clk 0:03:00.3]} 13. O-O {[%clk 0:02:37.2]} 13... Be7
{[%clk 0:03:00.2]} 14. Qa7 {[%clk 0:02:26.4]} 14... Qd8 {[%clk 0:02:51.5]} 15.
Nd4 {[%clk 0:02:20.5]} 15... Ba8 {[%clk 0:02:18.3]} 16. Ndb5 {[%clk 0:01:45.1]}
16... O-O {[%clk 0:02:17.4]} 17. Qc7 {[%clk 0:01:44.8]} 17... d5 {[%clk
0:02:08.7]} 18. Qxd8 {[%clk 0:01:30.2]} 18... Rfxd8 {[%clk 0:02:09.6]} 19. exd5
{[%clk 0:01:27.4]} 19... Nxd5 {[%clk 0:02:07.3]} 20. Nxd5 {[%clk 0:01:27.1]}
20... Rxd5 {[%clk 0:01:56.2]} 21. Nc7 {[%clk 0:01:25.3]} 21... Rd3 {[%clk
0:01:56.3]} 22. Bf2 {[%clk 0:01:17.2]} 22... Bc6 {[%clk 0:01:56.1]} 23. b3
{[%clk 0:01:10.3]} 23... Rc8 {[%clk 0:01:16]} 24. Bg3 {[%clk 0:00:35.3]} 24...
Bd6 {[%clk 0:01:15.9]} 25. Na6 {[%clk 0:00:27.8]} 25... Bb5 {[%clk 0:01:13.5]}
26. Bxd6 {[%clk 0:00:08.1]} 26... Rxd6 {[%clk 0:01:14.4]} 27. Nb4 {[%clk
0:00:08.3]} 27... Bxf1 {[%clk 0:01:14]} 28. Kxf1 {[%clk 0:00:09.2]} 28... Rd4
{[%clk 0:01:14.1]} 29. a3 {[%clk 0:00:08.9]} 29... Kf8 {[%clk 0:01:14.7]} 30.
Rb2 {[%clk 0:00:07.3]} 30... Ke7 {[%clk 0:01:07.5]} 31. Na6 {[%clk 0:00:07.3]}
31... Rd6 {[%clk 0:00:59.2]} 32. Nb4 {[%clk 0:00:06.1]} 32... Rd4 {[%clk
0:00:52.3]} 33. Na6 {[%clk 0:00:05.6]} 33... Rc6 {[%clk 0:00:29.3]} 34. Nb4
{[%clk 0:00:05.3]} 34... Rc3 {[%clk 0:00:25.8]} 35. Ke2 {[%clk 0:00:05.3]} 35...
Kd7 {[%clk 0:00:21.7]} 36. Na2 {[%clk 0:00:05.4]} 36... Rc6 {[%clk 0:00:16.4]}
37. b4 {[%clk 0:00:05.7]} 37... Rdc4 {[%clk 0:00:12]} 38. Kd2 {[%clk 0:00:05]}
38... Rd4+ {[%clk 0:00:12]} 39. Ke2 {[%clk 0:00:05.4]} 39... Ra6 {[%clk
0:00:10.1]} 40. Rb3 {[%clk 0:00:04.7]} 40... Kc7 {[%clk 0:00:09.3]} 41. Nc3
{[%clk 0:00:04.7]} 41... Kb7 {[%clk 0:00:08.4]} 42. a4 {[%clk 0:00:03.4]} 42...
Rd8 {[%clk 0:00:04.4]} 43. b5 {[%clk 0:00:03.4]} 43... Raa8 {[%clk 0:00:05.1]}
44. Ne4 {[%clk 0:00:03.2]} 44... Rd5 {[%clk 0:00:04.7]} 45. Nd2 {[%clk
0:00:03.1]} 45... Rxa4 {[%clk 0:00:04.6]} 46. Rc3 {[%clk 0:00:02.9]} 46... Rxb5
{[%clk 0:00:04.1]} 47. Rd3 {[%clk 0:00:02.8]} 47... Rd5 {[%clk 0:00:03.7]} 48.
Rb3+ {[%clk 0:00:02.9]} 48... Kc6 {[%clk 0:00:04.3]} 49. Rc3+ {[%clk 0:00:03.2]}
49... Kd7 {[%clk 0:00:05]} 50. Ne4 {[%clk 0:00:03.4]} 50... Ra2+ {[%clk
0:00:05.3]} 51. Ke3 {[%clk 0:00:02.9]} 51... Rxg2 {[%clk 0:00:05.9]} 0-1

[Event "Early-Titled-Tuesday-Blitz-October-17-2023"]
[Site "Chess.com"]
[Date "2023.10.17"]
[Round "6"]
[White "Actuary44"]
[Black "BasilSmash"]
[Result "0-1"]
[WhiteElo "2509"]
[BlackElo "2436"]
[TimeControl "180+1"]
[EndTime "9:11:56 PDT"]
[Termination "BasilSmash won by checkmate"]

1. e4 {[%clk 0:03:00.9]} 1... e5 {[%clk 0:02:56.3]} 2. Nf3 {[%clk 0:03:00.7]}
2... Nc6 {[%clk 0:02:54.8]} 3. Bb5 {[%clk 0:03:01.3]} 3... a6 {[%clk 0:02:54.5]}
4. Ba4 {[%clk 0:03:01.5]} 4... Nf6 {[%clk 0:02:50]} 5. d3 {[%clk 0:03:01.4]}
5... b5 {[%clk 0:02:47.2]} 6. Bb3 {[%clk 0:03:00.5]} 6... Be7 {[%clk 0:02:47]}
7. a4 {[%clk 0:03:01.1]} 7... Rb8 {[%clk 0:02:43.4]} 8. axb5 {[%clk 0:03:01.4]}
8... axb5 {[%clk 0:02:44.3]} 9. O-O {[%clk 0:03:01.7]} 9... O-O {[%clk 0:02:44]}
10. Re1 {[%clk 0:03:01.6]} 10... h6 {[%clk 0:02:43.2]} 11. Nbd2 {[%clk
0:03:01.3]} 11... d6 {[%clk 0:02:39.2]} 12. h3 {[%clk 0:03:01.6]} 12... Re8
{[%clk 0:02:30.2]} 13. Nf1 {[%clk 0:03:01.2]} 13... Bf8 {[%clk 0:02:30.1]} 14.
Ng3 {[%clk 0:03:00.3]} 14... g6 {[%clk 0:02:30.2]} 15. Be3 {[%clk 0:02:54.9]}
15... Bg7 {[%clk 0:02:27.8]} 16. Nh4 {[%clk 0:02:52.6]} 16... Be6 {[%clk
0:02:16.2]} 17. Bxe6 {[%clk 0:02:50.5]} 17... Rxe6 {[%clk 0:02:17.1]} 18. Ra6
{[%clk 0:02:22.4]} 18... Nb4 {[%clk 0:02:03.2]} 19. Ra7 {[%clk 0:02:21.4]} 19...
Nc6 {[%clk 0:02:00.3]} 20. Ra6 {[%clk 0:02:16]} 20... Nb4 {[%clk 0:01:58]} 21.
Ra3 {[%clk 0:02:16.7]} 21... c5 {[%clk 0:01:54.4]} 22. Nf3 {[%clk 0:02:03.7]}
22... Re8 {[%clk 0:01:51.3]} 23. Qd2 {[%clk 0:01:58.9]} 23... Kh7 {[%clk
0:01:49.3]} 24. Rea1 {[%clk 0:01:58.1]} 24... Qc7 {[%clk 0:01:47.9]} 25. Ne2
{[%clk 0:01:48.9]} 25... Nc6 {[%clk 0:01:36.6]} 26. c3 {[%clk 0:01:33.6]} 26...
c4 {[%clk 0:01:29.7]} 27. Ne1 {[%clk 0:01:27.3]} 27... d5 {[%clk 0:01:23.7]} 28.
exd5 {[%clk 0:01:24.4]} 28... Nxd5 {[%clk 0:01:24.6]} 29. dxc4 {[%clk
0:01:23.8]} 29... Nxe3 {[%clk 0:01:23.9]} 30. Qxe3 {[%clk 0:01:24]} 30... bxc4
{[%clk 0:01:23.1]} 31. Qd2 {[%clk 0:01:15.8]} 31... Red8 {[%clk 0:01:21.6]} 32.
Qc2 {[%clk 0:01:15.7]} 32... Qb6 {[%clk 0:01:17.1]} 33. Ra6 {[%clk 0:01:11.3]}
33... Qxb2 {[%clk 0:01:00.4]} 34. Qxb2 {[%clk 0:01:10.9]} 34... Rxb2 {[%clk
0:01:00]} 35. Rxc6 {[%clk 0:01:11.3]} 35... Rxe2 {[%clk 0:00:59.6]} 36. Rxc4
{[%clk 0:01:11.8]} 36... e4 {[%clk 0:00:56.2]} 37. f3 {[%clk 0:00:55.8]} 37...
e3 {[%clk 0:00:47.8]} 38. Rc1 {[%clk 0:00:47.9]} 38... f5 {[%clk 0:00:41.7]} 39.
Rc7 {[%clk 0:00:23.3]} 39... f4 {[%clk 0:00:38.9]} 40. c4 {[%clk 0:00:23.7]}
40... g5 {[%clk 0:00:34.9]} 41. c5 {[%clk 0:00:23.9]} 41... Kg6 {[%clk
0:00:35.1]} 42. c6 {[%clk 0:00:24.4]} 42... Bb2 {[%clk 0:00:27.6]} 43. Rb1
{[%clk 0:00:23.5]} 43... Rd6 {[%clk 0:00:26.8]} 44. Rb7 {[%clk 0:00:20.4]} 44...
Be5 {[%clk 0:00:20.8]} 45. c7 {[%clk 0:00:19.9]} 45... Rc6 {[%clk 0:00:21]} 46.
Nd3 {[%clk 0:00:16.9]} 46... Bxc7 {[%clk 0:00:20]} 47. Kf1 {[%clk 0:00:12.6]}
47... Rd2 {[%clk 0:00:19.8]} 48. Nb4 {[%clk 0:00:10.6]} 48... Rc4 {[%clk
0:00:19]} 49. Na6 {[%clk 0:00:07.8]} 49... Bd6 {[%clk 0:00:17.3]} 50. R7b6
{[%clk 0:00:06.7]} 50... Rcc2 {[%clk 0:00:16.9]} 51. Nb4 {[%clk 0:00:05.2]}
51... Rf2+ {[%clk 0:00:15.3]} 52. Kg1 {[%clk 0:00:05.1]} 52... Rxg2+ {[%clk
0:00:15.4]} 53. Kh1 {[%clk 0:00:05.8]} 53... Rh2+ {[%clk 0:00:15.4]} 54. Kg1
{[%clk 0:00:06.5]} 54... Rcg2+ {[%clk 0:00:13.4]} 55. Kf1 {[%clk 0:00:06.9]}
55... Ra2 {[%clk 0:00:13.2]} 56. Rxd6+ {[%clk 0:00:06.1]} 56... Kh5 {[%clk
0:00:12.9]} 57. Kg1 {[%clk 0:00:06.4]} 57... Rag2+ {[%clk 0:00:12]} 58. Kf1
{[%clk 0:00:06.8]} 58... e2+ {[%clk 0:00:11.2]} 59. Ke1 {[%clk 0:00:06.7]} 59...
Rg1+ {[%clk 0:00:11.7]} 60. Kd2 {[%clk 0:00:06.2]} 60... Rxb1 {[%clk 0:00:12.4]}
61. Nd3 {[%clk 0:00:03.6]} 61... e1=Q# {[%clk 0:00:12.3]} 0-1

[Event "Early-Titled-Tuesday-Blitz-October-17-2023"]
[Site "Chess.com"]
[Date "2023.10.17"]
[Round "6"]
[White "C_K_G"]
[Black "cristiano78"]
[Result "0-1"]
[WhiteElo "1886"]
[BlackElo "2261"]
[TimeControl "180+1"]
[EndTime "9:11:56 PDT"]
[Termination "cristiano78 won on time"]

1. e4 {[%clk 0:03:00.9]} 1... c5 {[%clk 0:02:25.6]} 2. Nf3 {[%clk 0:03:00.5]}
2... d6 {[%clk 0:02:25.2]} 3. d4 {[%clk 0:03:00.8]} 3... cxd4 {[%clk 0:02:25.4]}
4. Nxd4 {[%clk 0:03:01.5]} 4... Nf6 {[%clk 0:02:26.1]} 5. Nc3 {[%clk 0:03:02]}
5... g6 {[%clk 0:02:26.6]} 6. f4 {[%clk 0:03:00.9]} 6... Bg7 {[%clk 0:02:27]} 7.
Bb5+ {[%clk 0:02:59.6]} 7... Bd7 {[%clk 0:02:26.4]} 8. e5 {[%clk 0:02:56.4]}
8... dxe5 {[%clk 0:02:24.7]} 9. fxe5 {[%clk 0:02:56.3]} 9... Ng4 {[%clk
0:02:21.3]} 10. Qxg4 {[%clk 0:02:37.3]} 10... Bxe5 {[%clk 0:01:52.4]} 11. Bxd7+
{[%clk 0:02:14.6]} 11... Nxd7 {[%clk 0:01:51.5]} 12. Be3 {[%clk 0:02:12.7]}
12... Nf6 {[%clk 0:01:51]} 13. Qe2 {[%clk 0:02:09.3]} 13... O-O {[%clk
0:01:50.5]} 14. O-O {[%clk 0:02:07.3]} 14... a6 {[%clk 0:01:47.3]} 15. Rad1
{[%clk 0:02:06.2]} 15... Qc7 {[%clk 0:01:47.4]} 16. h3 {[%clk 0:02:03.9]} 16...
Rfd8 {[%clk 0:01:45.8]} 17. Rd3 {[%clk 0:01:48.5]} 17... Nh5 {[%clk 0:01:44.6]}
18. Nf5 {[%clk 0:01:15.6]} 18... Rxd3 {[%clk 0:01:37.1]} 19. cxd3 {[%clk
0:01:14.7]} 19... Bh2+ {[%clk 0:01:22.4]} 20. Kh1 {[%clk 0:01:14.1]} 20... e6
{[%clk 0:01:21.1]} 21. Nh6+ {[%clk 0:01:13.1]} 21... Kh8 {[%clk 0:01:11.8]} 22.
Nxf7+ {[%clk 0:00:48.6]} 22... Kg7 {[%clk 0:01:06.2]} 23. Bd4+ {[%clk
0:00:47.4]} 23... e5 {[%clk 0:00:44.3]} 24. Bxe5+ {[%clk 0:00:46.5]} 24... Bxe5
{[%clk 0:00:41.3]} 25. Qxe5+ {[%clk 0:00:45.2]} 25... Qxe5 {[%clk 0:00:40.2]}
26. Nxe5 {[%clk 0:00:45.4]} 26... Ng3+ {[%clk 0:00:41.1]} 27. Kh2 {[%clk
0:00:45.3]} 27... Nxf1+ {[%clk 0:00:42]} 28. Kg1 {[%clk 0:00:38]} 28... Ne3
{[%clk 0:00:41.2]} 29. d4 {[%clk 0:00:37.9]} 29... Rd8 {[%clk 0:00:38.9]} 30.
Nf3 {[%clk 0:00:37.7]} 30... b5 {[%clk 0:00:36.4]} 31. Kf2 {[%clk 0:00:35]}
31... Nf5 {[%clk 0:00:36.1]} 32. Ne2 {[%clk 0:00:30]} 32... Nd6 {[%clk 0:00:33]}
33. b3 {[%clk 0:00:28.2]} 33... Rc8 {[%clk 0:00:29.5]} 34. Ne1 {[%clk
0:00:17.3]} 34... Ne4+ {[%clk 0:00:27.3]} 35. Ke3 {[%clk 0:00:17]} 35... Nc3
{[%clk 0:00:28.2]} 36. Nf4 {[%clk 0:00:16]} 36... Nxa2 {[%clk 0:00:23.5]} 37.
Ned3 {[%clk 0:00:11.9]} 37... Nc1 {[%clk 0:00:20.9]} 38. Nb4 {[%clk 0:00:10.5]}
38... Nxb3 {[%clk 0:00:19.3]} 39. Nxa6 {[%clk 0:00:08.9]} 39... Rc3+ {[%clk
0:00:19.1]} 40. Ke4 {[%clk 0:00:08.8]} 40... Nd2+ {[%clk 0:00:13.7]} 41. Ke5
{[%clk 0:00:06.9]} 41... Re3+ {[%clk 0:00:11.8]} 42. Kd6 {[%clk 0:00:06]} 42...
g5 {[%clk 0:00:10.1]} 43. Ne6+ {[%clk 0:00:05.1]} 43... Kg6 {[%clk 0:00:10.1]}
44. d5 {[%clk 0:00:04.7]} 44... h5 {[%clk 0:00:08.3]} 45. Nac5 {[%clk
0:00:03.6]} 45... b4 {[%clk 0:00:05.6]} 46. Kc6 {[%clk 0:00:03.2]} 46... b3
{[%clk 0:00:04.4]} 47. Nxb3 {[%clk 0:00:01.5]} 47... Nxb3 {[%clk 0:00:01.4]} 0-1

[Event "Early-Titled-Tuesday-Blitz-October-17-2023"]
[Site "Chess.com"]
[Date "2023.10.17"]
[Round "6"]
[White "Kildepiotr"]
[Black "m_ezat"]
[Result "0-1"]
[WhiteElo "2631"]
[BlackElo "2548"]
[TimeControl "180+1"]
[EndTime "9:12:07 PDT"]
[Termination "m_ezat won by resignation"]

1. Nf3 {[%clk 0:03:00.9]} 1... Nf6 {[%clk 0:02:59.8]} 2. g3 {[%clk 0:03:01.4]}
2... g6 {[%clk 0:03:00.1]} 3. Bg2 {[%clk 0:03:02.1]} 3... Bg7 {[%clk 0:03:00.8]}
4. O-O {[%clk 0:03:02.9]} 4... O-O {[%clk 0:03:01.3]} 5. d4 {[%clk 0:03:03.7]}
5... d6 {[%clk 0:03:01.4]} 6. Nbd2 {[%clk 0:03:03.8]} 6... Nc6 {[%clk
0:02:58.5]} 7. e4 {[%clk 0:03:03.8]} 7... e5 {[%clk 0:02:58.6]} 8. dxe5 {[%clk
0:03:04.7]} 8... Nxe5 {[%clk 0:02:58.3]} 9. Nxe5 {[%clk 0:03:04.3]} 9... dxe5
{[%clk 0:02:58.6]} 10. Qe2 {[%clk 0:03:05.2]} 10... Qe7 {[%clk 0:02:57.4]} 11.
a4 {[%clk 0:03:05.2]} 11... a5 {[%clk 0:02:50.3]} 12. b3 {[%clk 0:03:05.4]}
12... Rd8 {[%clk 0:02:47.5]} 13. Bb2 {[%clk 0:03:05.3]} 13... b6 {[%clk
0:02:46.1]} 14. Rfd1 {[%clk 0:03:05]} 14... Ba6 {[%clk 0:02:45.9]} 15. Qe1
{[%clk 0:03:05.2]} 15... Nd7 {[%clk 0:02:41]} 16. Bf1 {[%clk 0:03:04.7]} 16...
Bxf1 {[%clk 0:02:39.1]} 17. Kxf1 {[%clk 0:03:05.5]} 17... Nc5 {[%clk 0:02:38.6]}
18. Nc4 {[%clk 0:03:05.6]} 18... Qe6 {[%clk 0:02:37.9]} 19. f3 {[%clk
0:03:03.8]} 19... h5 {[%clk 0:02:31.2]} 20. Kg2 {[%clk 0:03:02]} 20... h4 {[%clk
0:02:30.2]} 21. Rxd8+ {[%clk 0:03:00.6]} 21... Rxd8 {[%clk 0:02:29.2]} 22. Qe2
{[%clk 0:02:59.1]} 22... h3+ {[%clk 0:02:28.4]} 23. Kf1 {[%clk 0:02:54.9]} 23...
f5 {[%clk 0:02:23.1]} 24. exf5 {[%clk 0:02:54.2]} 24... Qxf5 {[%clk 0:02:23.2]}
25. Re1 {[%clk 0:02:46.5]} 25... e4 {[%clk 0:02:15.1]} 26. Bxg7 {[%clk
0:02:45.9]} 26... Kxg7 {[%clk 0:02:06.8]} 27. Kg1 {[%clk 0:02:27.3]} 27... Qxf3
{[%clk 0:01:56]} 28. Qxf3 {[%clk 0:02:25.7]} 28... exf3 {[%clk 0:01:56.2]} 29.
Kf2 {[%clk 0:02:26]} 29... Kf6 {[%clk 0:01:33.4]} 30. Kxf3 {[%clk 0:02:24.9]}
30... Ne6 {[%clk 0:01:33.5]} 31. Kg4 {[%clk 0:02:20.7]} 31... Nd4 {[%clk
0:01:18.9]} 32. Rf1+ {[%clk 0:02:18.3]} 32... Kg7 {[%clk 0:01:16.7]} 33. Rf2
{[%clk 0:02:09.2]} 33... Rh8 {[%clk 0:01:05.9]} 34. Ne5 {[%clk 0:02:06.5]} 34...
Nf5 {[%clk 0:01:05.2]} 35. Rd2 {[%clk 0:01:58.6]} 35... Kf6 {[%clk 0:00:51]} 36.
Nf3 {[%clk 0:01:48.7]} 36... Ne3+ {[%clk 0:00:45]} 37. Kf4 {[%clk 0:01:49]}
37... Ng2+ {[%clk 0:00:44.6]} 38. Ke4 {[%clk 0:01:46.8]} 38... Re8+ {[%clk
0:00:43.9]} 39. Kd4 {[%clk 0:01:46.7]} 39... Ne3 {[%clk 0:00:41]} 40. Ng1 {[%clk
0:01:39.2]} 40... Nf5+ {[%clk 0:00:38.2]} 41. Kc3 {[%clk 0:01:38.1]} 41... Re3+
{[%clk 0:00:37.3]} 42. Kb2 {[%clk 0:01:35.4]} 42... Nxg3 {[%clk 0:00:35.3]} 43.
hxg3 {[%clk 0:01:01.8]} 43... Rxg3 {[%clk 0:00:34.3]} 44. Rf2+ {[%clk 0:01:02]}
44... Kg7 {[%clk 0:00:33.8]} 45. Ne2 {[%clk 0:00:52.9]} 45... Re3 {[%clk
0:00:29.5]} 46. Kc1 {[%clk 0:00:52.4]} 46... g5 {[%clk 0:00:28.1]} 47. Kd2
{[%clk 0:00:52.5]} 47... Re6 {[%clk 0:00:27.6]} 48. Nd4 {[%clk 0:00:40.7]} 48...
Rd6 {[%clk 0:00:25.9]} 49. Ke3 {[%clk 0:00:40.4]} 49... Kg6 {[%clk 0:00:22.4]}
50. Rf8 {[%clk 0:00:34.8]} 50... Kg7 {[%clk 0:00:13.9]} 51. Rf3 {[%clk
0:00:31.3]} 51... g4 {[%clk 0:00:14]} 52. Rg3 {[%clk 0:00:24.9]} 52... Rg6
{[%clk 0:00:12.1]} 53. Kf2 {[%clk 0:00:21.9]} 53... Kf6 {[%clk 0:00:11]} 54. Nb5
{[%clk 0:00:18.1]} 54... Kg5 {[%clk 0:00:11.2]} 55. Nxc7 {[%clk 0:00:17.2]}
55... Kh4 {[%clk 0:00:11.8]} 56. Re3 {[%clk 0:00:16.7]} 56... Rf6+ {[%clk
0:00:11.4]} 57. Kg1 {[%clk 0:00:16.8]} 57... g3 {[%clk 0:00:11.7]} 58. Re4+
{[%clk 0:00:16.6]} 58... Kg5 {[%clk 0:00:12]} 59. Nd5 {[%clk 0:00:17]} 59... h2+
{[%clk 0:00:11.5]} 60. Kg2 {[%clk 0:00:17.1]} 60... Rf2+ {[%clk 0:00:11.8]} 61.
Kxg3 {[%clk 0:00:16.9]} 61... h1=Q {[%clk 0:00:12.3]} 62. Re5+ {[%clk 0:00:17]}
62... Kg6 {[%clk 0:00:12.1]} 63. Kxf2 {[%clk 0:00:16.9]} 63... Qh2+ {[%clk
0:00:12.6]} 64. Kf3 {[%clk 0:00:14.9]} 64... Qxe5 {[%clk 0:00:13.5]} 65. Nf4+
{[%clk 0:00:15.3]} 65... Kf5 {[%clk 0:00:12.8]} 66. Nd3 {[%clk 0:00:15.3]} 66...
Qc3 {[%clk 0:00:13.6]} 0-1